bitfinex/quotes_SOLUSD_20240712
["timestamp","ask_amount","ask_price","bid_price","bid_amount"]
[1720786097279,29.6978,136.06,136.01,14.58]
[1720786097469,29.6978,136.06,135.94,71.8222]
[1720786097669,14.58,136.05,136.0,14.58]
[1720786098682,15.1178,136.06,136.01,14.58]
[1720786098884,29.6978,136.06,136.01,14.58]
[1720786099297,15.1178,136.06,136.01,14.58]
[1720786099469,15.1178,136.06,136.03,14.58]
[1720786101387,15.1178,136.06,136.04,14.58]
[1720786103780,16.1025,136.09,136.05,14.58]
[1720786104013,16.1025,136.09,136.06,14.58]
[1720786104878,16.1025,136.09,136.05,14.58]
[1720786106987,16.1025,136.09,136.06,14.58]
[1720786108994,16.1025,136.09,136.07,14.58]
[1720786109186,16.1025,136.09,136.08,14.58]
[1720786109386,16.1025,136.09,136.07,14.58]
[1720786110471,16.1025,136.09,136.01,58.32]
[1720786110681,16.1025,136.09,136.06,14.58]
[1720786111504,16.1025,136.09,136.07,14.58]
[1720786113899,16.1025,136.09,136.08,14.58]
[1720786116483,16.1025,136.09,136.07,14.58]
[1720786117703,16.1025,136.09,136.02,45.0]
[1720786118001,16.1025,136.09,136.07,14.58]
[1720786118201,17.2335455,136.13,136.07,14.58]
[1720786118392,17.2335455,136.13,136.1,14.58]
[1720786118798,17.2335455,136.13,136.03,20.0]
[1720786118988,17.2335455,136.13,136.09,14.58]
[1720786119178,17.2335455,136.13,136.08,14.58]
[1720786119384,17.2335455,136.13,136.04,45.0]
[1720786119385,31.8135455,136.13,136.04,45.0]
[1720786119590,14.58,136.12,136.07,14.58]
[1720786119783,14.58,136.11,136.06,14.58]
[1720786119984,14.58,136.11,136.01,2.91880023]
[1720786120187,14.58,136.1,136.05,14.58]
[1720786120393,14.58,136.1,136.01,58.32]
[1720786120394,17.2335455,136.13,136.07,14.58]
[1720786120600,14.58,136.12,136.07,14.58]
[1720786120903,17.2335455,136.13,136.06,14.58]
[1720786120904,24.5794455,136.13,136.06,14.58]
[1720786121089,14.58,136.11,136.05,14.58]
[1720786121285,14.58,136.11,136.06,14.58]
[1720786122308,14.58,136.12,136.06,14.58]
[1720786122510,29.8768,136.08,135.99,13.407]
[1720786122811,14.58,136.07,136.02,14.58]
[1720786124416,15.2968,136.08,136.04,14.58]
[1720786125106,15.2968,136.08,136.01,14.58]
[1720786125309,15.2968,136.08,136.05,14.58]
[1720786125494,15.2968,136.08,136.06,14.58]
[1720786126712,15.2968,136.08,136.05,14.58]
[1720786127202,15.2968,136.08,136.06,14.58]
[1720786128409,16.661,136.11,136.07,14.58]
[1720786128606,16.661,136.11,136.08,14.58]
[1720786131306,0.8472455,136.13,136.1,14.58]
[1720786131499,0.8472455,136.13,136.02,6.0362]
[1720786131720,0.8472455,136.13,136.1,14.58]
[1720786131912,15.4272455,136.13,136.03,45.0]
[1720786132114,15.4272455,136.13,136.08,14.58]
[1720786132304,0.8472455,136.13,136.03,45.0]
[1720786132503,15.4272455,136.13,136.08,14.58]
[1720786132900,14.58,136.1,136.05,14.58]
[1720786133204,16.2274,136.12,136.06,20.0]
[1720786133414,30.8074,136.12,136.05,1.46986974]
[1720786133608,16.2274,136.12,136.02,20.0]
[1720786133813,14.58,136.11,136.06,14.58]
[1720786133997,14.58,136.09,135.97,7.3629]
[1720786134200,30.1227,136.08,136.03,14.58]
[1720786134396,15.5427,136.08,136.04,14.58]
[1720786134712,30.1227,136.08,136.03,14.58]
[1720786135717,30.1227,136.08,136.04,14.58]
[1720786135718,15.5427,136.08,136.04,14.58]
[1720786136599,15.5427,136.08,136.05,14.58]
[1720786137016,15.5427,136.08,136.04,14.58]
[1720786137218,15.5427,136.08,136.05,14.58]
[1720786137624,15.5427,136.08,136.01,14.58]
[1720786137625,15.5427,136.08,136.06,14.58]
[1720786137796,15.5427,136.08,136.05,14.58]
[1720786141518,15.5427,136.08,136.07,14.58]
[1720786141904,6.3327,136.1,136.07,14.58]
[1720786142412,6.3327,136.1,136.06,14.58]
[1720786143013,6.3327,136.1,136.07,14.58]
[1720786144004,6.3327,136.1,136.01,58.32]
[1720786144005,6.3327,136.1,136.06,14.58]
[1720786144229,20.9127,136.1,136.05,14.58]
[1720786144807,6.3327,136.1,136.06,14.58]
[1720786146712,20.9127,136.1,136.05,14.58]
[1720786147324,6.3327,136.1,136.06,14.58]
[1720786148025,16.0434,136.11,136.07,14.58]
[1720786148410,16.0434,136.11,136.08,14.58]
[1720786148813,16.0434,136.11,136.09,14.58]
[1720786149713,16.0434,136.11,136.08,14.58]
[1720786150819,16.0434,136.11,136.09,14.58]
[1720786151318,30.6234,136.11,136.02,13.4575]
[1720786151511,30.6234,136.11,136.06,14.58]
[1720786151717,16.0434,136.11,136.08,14.58]
[1720786153535,16.0434,136.11,136.09,14.58]
[1720786155631,16.0434,136.11,136.03,65.0]
[1720786155935,16.0434,136.11,136.08,14.58]
[1720786159640,30.6234,136.11,136.03,65.0]
[1720786159936,30.6234,136.11,136.06,14.58]
[1720786160134,16.0434,136.11,136.07,14.58]
[1720786162049,30.6234,136.11,136.03,65.0]
[1720786162225,16.0434,136.11,136.07,14.58]
[1720786162421,30.6234,136.11,136.06,14.58]
[1720786163837,30.6234,136.11,136.03,65.0]
[1720786164024,14.58,136.1,136.0,7.67315363]
[1720786164227,14.58,136.08,136.03,14.58]
[1720786164431,16.1062,136.07,136.03,14.58]
[1720786166039,16.1062,136.07,136.04,14.58]
[1720786166346,16.1062,136.07,136.05,14.58]
[1720786166728,16.1062,136.07,136.01,14.58]
[1720786167057,6.1927,136.12,136.06,14.58]
[1720786167058,16.319,136.11,136.06,14.58]
[1720786167259,16.319,136.11,136.09,14.58]
[1720786169928,16.319,136.11,136.08,14.58]
[1720786171143,16.319,136.11,136.07,14.58]
[1720786171544,16.319,136.11,136.1,14.58]
[1720786173432,16.319,136.11,136.02,20.0]
[1720786173632,16.319,136.11,136.07,14.58]
[1720786173854,16.319,136.11,136.08,14.58]
[1720786177770,16.319,136.11,136.07,14.58]
[1720786178061,30.899,136.11,136.06,14.58]
[1720786178227,16.319,136.11,136.07,14.58]
[1720786178867,37.2206,136.11,136.06,14.58]
[1720786179565,14.58,136.1,136.01,58.32]
[1720786179852,14.58,136.1,136.05,14.58]
[1720786180044,22.6406,136.11,136.04,14.58]
[1720786180045,16.5966,136.08,136.04,14.58]
[1720786183766,16.5966,136.08,136.05,14.58]
[1720786186843,16.5966,136.08,136.04,14.58]
[1720786187865,16.5966,136.08,136.05,14.58]
[1720786188050,16.5966,136.08,136.06,14.58]
[1720786188258,16.5966,136.08,136.07,14.58]
[1720786190868,16.5966,136.08,136.06,14.58]
[1720786191236,16.5966,136.08,135.98,10.5418108]
[1720786191555,31.1766,136.08,136.03,14.58]
[1720786191749,31.1766,136.08,136.04,20.0]
[1720786192060,16.5966,136.08,136.04,20.0]
[1720786192452,31.1766,136.08,136.03,14.58]
[1720786192649,16.5966,136.08,136.04,34.58]
[1720786192967,16.5966,136.08,136.05,14.58]
[1720786194461,16.5966,136.08,136.04,14.58]
[1720786194848,16.5966,136.08,136.05,1.46958601]
[1720786195069,16.5966,136.08,136.04,14.58]
[1720786196647,16.5966,136.08,136.05,14.58]
[1720786198468,16.5966,136.08,136.06,14.58]
[1720786199764,16.5966,136.08,136.07,14.58]
[1720786201172,16.5966,136.08,136.06,14.58]
[1720786203181,16.5966,136.08,136.01,58.32]
[1720786203380,22.3631,136.11,136.07,14.58]
[1720786203678,22.3631,136.11,136.01,72.1936]
[1720786203679,22.3631,136.11,136.08,14.58]
[1720786204756,22.3631,136.11,136.07,14.58]
[1720786205068,22.3631,136.11,135.97,35.8012]
[1720786205069,14.58,136.08,135.97,35.8012]
[1720786205277,15.614,136.07,135.97,13.4381]
[1720786205492,30.194,136.07,136.02,14.58]
[1720786206158,30.194,136.07,135.97,13.4381]
[1720786206349,30.194,136.07,136.02,14.58]
[1720786207393,30.194,136.07,136.01,14.58]
[1720786208176,15.614,136.07,136.03,14.58]
[1720786208477,30.194,136.07,136.02,14.58]
[1720786209377,15.614,136.07,135.97,13.4381]
[1720786209677,15.614,136.07,136.04,14.58]
[1720786210463,15.614,136.07,136.01,14.58]
[1720786210464,15.614,136.07,136.06,14.58]
[1720786214467,15.614,136.07,135.98,72.37]
[1720786214468,15.614,136.07,135.98,65.0]
[1720786214765,15.614,136.07,136.05,14.58]
[1720786216873,15.614,136.07,136.06,14.58]
[1720786224892,15.614,136.07,135.98,75.60299614]
[1720786225185,15.614,136.07,136.05,14.58]
[1720786225570,15.614,136.07,136.06,14.58]
[1720786227392,15.614,136.07,135.98,75.60299614]
[1720786227566,30.194,136.07,135.98,7.68536262]
[1720786227767,30.194,136.07,136.02,14.58]
[1720786230194,15.614,136.07,136.04,14.58]
[1720786230493,15.614,136.07,136.05,14.58]
[1720786233379,15.614,136.07,135.98,7.37]
[1720786233573,15.614,136.07,135.99,65.0]
[1720786233786,15.614,136.07,136.02,14.58]
[1720786234214,15.614,136.07,136.03,14.58]
[1720786234879,15.614,136.07,136.04,14.58]
[1720786235086,15.614,136.07,136.01,14.58]
[1720786235293,21.8249,136.11,136.06,14.58]
[1720786235594,21.8249,136.11,136.08,14.58]
[1720786237395,21.8249,136.11,136.01,58.32]
[1720786237576,21.8249,136.11,136.08,14.58]
[1720786244008,15.5033,136.11,136.08,14.58]
[1720786244209,15.5033,136.11,136.02,59.0184]
[1720786244407,15.5033,136.11,136.1,14.58]
[1720786245403,15.5033,136.11,136.09,14.58]
[1720786246087,15.5033,136.11,136.02,14.0184]
[1720786246420,15.5033,136.11,136.08,14.58]
[1720786246911,15.5033,136.11,136.07,14.58]
[1720786247684,15.5033,136.11,136.08,14.58]
[1720786248111,15.5033,136.11,136.09,14.58]
[1720786248811,15.5033,136.11,136.08,14.58]
[1720786249397,15.5033,136.11,136.02,14.0184]
[1720786249714,15.5033,136.11,136.07,14.58]
[1720786251606,15.5033,136.11,136.01,2.98508241]
[1720786251917,14.58,136.08,136.03,14.58]
[1720786252119,14.58,136.08,135.99,14.02057536]
[1720786252413,14.58,136.09,136.04,14.58]
[1720786252713,6.6458,136.1,136.05,14.58]
[1720786252899,21.2258,136.1,136.05,14.58]
[1720786253308,6.6458,136.1,136.01,14.58]
[1720786253516,6.6458,136.1,136.06,14.58]
[1720786254805,6.6458,136.1,136.02,65.0]
[1720786254806,6.6458,136.1,136.08,14.58]
[1720786255414,6.6458,136.1,136.09,14.58]
[1720786255613,6.6458,136.1,136.08,14.58]
[1720786256125,15.5033,136.11,136.08,14.58]
[1720786258223,15.5033,136.11,136.02,72.3629]
[1720786258417,15.5033,136.11,136.09,14.58]
[1720786258626,15.5033,136.11,136.1,14.58]
[1720786259291,15.5033,136.11,136.09,14.58]
[1720786259499,15.5033,136.11,136.08,14.58]
[1720786261097,15.5033,136.11,136.07,14.58]
[1720786261899,15.5033,136.11,136.08,14.58]
[1720786262497,15.5033,136.11,136.02,72.3629]
[1720786262695,15.5033,136.11,136.08,14.58]
[1720786263106,15.5033,136.11,136.0,7.67876718]
[1720786263419,14.58,136.1,136.04,14.58]
[1720786264131,14.58,136.1,136.0,7.67876718]
[1720786264132,21.9945,136.09,136.0,7.67876718]
[1720786264310,14.58,136.08,136.03,14.58]
[1720786264930,14.58,136.08,135.96,16.92427522]
[1720786265115,14.58,136.08,136.03,14.58]
[1720786266418,36.5745,136.09,136.04,14.58]
[1720786268333,16.7773455,136.13,136.08,72.9]
[1720786268627,16.7773455,136.13,136.12,14.58]
[1720786268928,0.8472455,136.13,136.1,1.46918762]
[1720786269134,0.8472455,136.13,136.07,20.0]
[1720786269348,0.8472455,136.13,136.12,14.58]
[1720786270147,0.8472455,136.13,136.09,1.46924047]
[1720786270428,16.3915,136.12,136.02,6.66]
[1720786270736,16.3915,136.12,136.08,14.58]
[1720786271350,16.3915,136.12,136.09,14.58]
[1720786272050,16.3915,136.12,136.02,6.66]
[1720786272220,23.738,136.12,136.08,14.58]
[1720786272424,14.58,136.1,136.05,14.58]
[1720786272627,6.5879,136.11,135.98,6.66]
[1720786272930,6.5879,136.11,136.0,29.1]
[1720786273328,16.3915,136.1,135.98,35.76]
[1720786273705,16.3915,136.1,136.0,29.1]
[1720786274527,16.3915,136.1,136.01,45.0]
[1720786275418,16.3915,136.1,136.02,20.0]
[1720786276040,6.5879,136.11,136.02,20.0]
[1720786276041,0.8472455,136.13,136.07,29.1]
[1720786276334,0.8472455,136.13,136.08,20.70288485]
[1720786276631,0.8472455,136.13,136.02,29.1]
[1720786276935,0.8472455,136.13,136.04,29.1]
[1720786277138,0.8472455,136.13,136.01,45.0]
[1720786277139,0.8472455,136.13,136.06,29.1]
[1720786277453,0.8472455,136.13,136.08,29.1]
[1720786277946,4.55e-05,136.13,136.12,29.1]
[1720786278127,4.55e-05,136.13,136.12,94.1]
[1720786278651,4.55e-05,136.13,136.12,65.0]
[1720786278855,4.55e-05,136.13,136.12,20.0]
[1720786279019,4.55e-05,136.13,136.08,29.1]
[1720786279349,4.55e-05,136.13,136.09,20.0]
[1720786279514,4.55e-05,136.13,136.07,29.1]
[1720786279714,4.55e-05,136.13,136.08,20.0]
[1720786279916,4.55e-05,136.13,136.09,45.0]
[1720786280150,4.55e-05,136.13,136.09,74.1]
[1720786280350,4.55e-05,136.13,136.1,21.46909396]
[1720786280631,4.55e-05,136.13,136.12,29.1]
[1720786280834,4.55e-05,136.13,136.12,95.56864806]
[1720786281027,4.55e-05,136.13,136.12,66.46864806]
[1720786281222,4.55e-05,136.13,136.12,95.56864806]
[1720786283215,15.7987,136.21,136.12,95.56864806]
[1720786283416,15.7987,136.21,136.17,29.1]
[1720786283850,15.7987,136.21,136.13,20.0]
[1720786284019,15.7987,136.21,136.15,29.1]
[1720786284219,15.7987,136.21,136.07,21.44852178]
[1720786284425,15.7987,136.21,136.12,29.1]
[1720786284943,15.7987,136.21,136.14,29.1]
[1720786285147,15.7987,136.21,136.15,1.46865488]
[1720786285446,15.7987,136.21,136.14,29.1]
[1720786285641,23.1403,136.21,136.14,29.1]
[1720786285844,23.1403,136.21,136.12,29.1]
[1720786286029,29.1608,136.2,136.12,29.1]
[1720786286231,21.8186,136.2,136.12,29.1]
[1720786286632,21.8186,136.2,136.14,29.1]
[1720786287234,21.8186,136.2,136.16,29.1]
[1720786290832,15.7759,136.2,136.18,29.1]
[1720786291840,22.4328,136.23,136.18,30.56835876]
[1720786292042,22.4328,136.23,136.21,29.1]
[1720786292260,16.1658,136.23,136.22,0.53030668]
[1720786292450,17.0130455,136.27,136.22,20.0]
[1720786292653,17.0130455,136.27,136.23,30.56651875]
[1720786292849,17.0130455,136.27,136.23,29.1]
[1720786293157,17.0130455,136.27,136.22,20.0]
[1720786293350,17.0130455,136.27,136.22,29.1]
[1720786294763,17.0130455,136.27,136.23,1.46789527]
[1720786295138,17.0130455,136.27,136.18,52.64]
[1720786295139,17.0130455,136.27,136.19,1.46761596]
[1720786295347,17.0130455,136.27,136.19,46.46761596]
[1720786295593,17.0130455,136.27,136.2,20.0]
[1720786295876,17.0130455,136.27,136.22,32.64]
[1720786296078,17.0130455,136.27,136.23,65.0]
[1720786296255,0.8472455,136.27,136.23,65.0]
[1720786296642,0.8472455,136.27,136.24,1.46761287]
[1720786296870,0.8472455,136.27,136.23,65.0]
[1720786297367,0.8472455,136.27,136.23,21.2494213]
[1720786297536,0.8472455,136.27,136.23,20.0]
[1720786297941,0.8472455,136.27,136.22,32.64]
[1720786298962,0.8472455,136.27,136.23,1.46781529]
[1720786299259,0.8472455,136.27,136.22,32.64]
[1720786299665,0.8472455,136.27,136.17,6.1583]
[1720786299846,0.8472455,136.27,136.19,32.64]
[1720786300047,0.8472455,136.27,136.2,66.46626088]
[1720786300367,0.8472455,136.27,136.2,65.0]
[1720786300660,0.8472455,136.27,136.21,1.46623961]
[1720786301560,0.8472455,136.27,136.2,65.0]
[1720786301767,0.8472455,136.27,136.21,1.46792991]
[1720786302143,0.8472455,136.27,136.2,65.0]
[1720786302351,0.8472455,136.27,136.2,20.0]
[1720786302555,0.8472455,136.27,136.18,20.0]
[1720786302856,0.8472455,136.27,136.19,45.77162145]
[1720786303046,0.8472455,136.27,136.2,20.0]
[1720786303244,0.8472455,136.27,136.21,1.0314828]
[1720786303569,0.8472455,136.27,136.21,45.0]
[1720786304648,0.8472455,136.27,136.2,20.0]
[1720786304843,0.8472455,136.27,136.18,20.0]
[1720786305054,0.8472455,136.27,136.19,45.0]
[1720786305244,0.8472455,136.27,136.2,20.0]
[1720786306085,0.8472455,136.27,136.21,45.0]
[1720786306267,0.8472455,136.27,136.22,20.0]
[1720786306452,6.099,136.26,136.17,40.52142178]
[1720786306653,16.0344,136.25,136.17,40.52142178]
[1720786307375,23.374,136.25,136.13,7.67515104]
[1720786307671,16.0344,136.25,136.12,40.52142178]
[1720786307851,16.0344,136.25,136.12,48.19863819]
[1720786308369,23.3741,136.25,136.12,48.19863819]
[1720786308572,7.3399,136.24,136.12,48.19863819]
[1720786308770,16.3761,136.2,136.12,7.67721641]
[1720786309071,16.3761,136.2,136.08,315.65582178]
[1720786309376,16.3761,136.2,136.1,7.67855957]
[1720786309872,13.8756,136.19,136.1,7.67855957]
[1720786310176,7.3435,136.18,136.08,7.88142178]
[1720786310383,13.8758,136.19,136.06,32.64]
[1720786310675,7.3442,136.17,136.07,7.67583759]
[1720786310872,7.3444,136.16,136.06,32.64]
[1720786311074,16.3761,136.18,136.04,7.88142178]
[1720786311075,7.3438,136.17,136.04,7.88142178]
[1720786311271,7.3438,136.17,136.05,0.41236206]
[1720786311574,7.3438,136.17,136.04,15.5563645]
[1720786311774,16.3761,136.18,136.04,15.5563645]
[1720786311775,23.7194,136.18,136.04,15.5563645]
[1720786311976,23.7194,136.18,136.05,20.0]
[1720786312284,23.7194,136.18,136.05,65.0]
[1720786312454,16.3761,136.18,136.06,1.46923791]
[1720786312853,16.3761,136.18,136.05,65.0]
[1720786313581,16.3761,136.18,136.05,20.0]
[1720786313786,16.3761,136.18,136.06,1.46910345]
[1720786314288,16.3761,136.18,136.05,20.0]
[1720786314480,16.3761,136.18,136.07,1.22269575]
[1720786314658,16.3761,136.18,136.08,1.46908955]
[1720786315060,23.7194,136.18,136.08,1.46908955]
[1720786315286,7.3439,136.17,136.05,20.0]
[1720786315456,23.7194,136.18,136.06,45.0]
[1720786315662,23.7194,136.18,136.07,20.38420297]
[1720786315971,23.7194,136.18,136.08,45.38500842]
[1720786316160,23.7194,136.18,136.08,45.0]
[1720786316361,23.7194,136.18,136.09,20.0]
[1720786316767,23.7194,136.18,136.1,1.46911465]
[1720786316969,16.3761,136.18,136.11,1.46910203]
[1720786317167,16.3761,136.18,136.09,20.0]
[1720786317591,23.7195,136.18,136.09,20.0]
[1720786317795,7.3438,136.17,136.09,20.0]
[1720786317964,16.3761,136.18,136.09,20.0]
[1720786318297,16.3761,136.18,136.1,1.46910169]
[1720786318469,16.3761,136.18,136.11,1.46909035]
[1720786318783,23.7194,136.18,136.09,20.0]
[1720786318982,7.3437,136.17,136.1,1.46912558]
[1720786319664,23.7195,136.18,136.11,1.46922068]
[1720786321064,23.7195,136.18,136.09,20.0]
[1720786321266,16.3761,136.18,136.09,20.0]
[1720786321478,16.3761,136.18,136.1,1.46902522]
[1720786321680,16.3761,136.18,136.11,1.46902803]
[1720786321977,16.3761,136.18,136.11,21.46902803]
[1720786322471,16.3761,136.18,136.12,29.07]
[1720786322684,16.3761,136.18,136.14,29.07]
[1720786323070,16.3761,136.18,136.16,29.07]
[1720786324567,16.3761,136.18,136.15,65.0]
[1720786324767,15.8332,136.25,136.16,1.46852954]
[1720786325386,12.95697607,136.25,136.16,1.46852954]
[1720786325565,12.95697607,136.25,136.15,97.68]
[1720786325769,12.95697607,136.25,136.15,65.0]
[1720786327289,12.95697607,136.25,136.16,1.46807479]
[1720786327496,12.95697607,136.25,136.15,65.0]
[1720786328170,12.95697607,136.25,136.16,1.46809193]
[1720786328372,12.95697607,136.25,136.15,65.0]
[1720786329785,12.95697607,136.25,136.16,0.3686253]
[1720786329992,12.95697607,136.25,136.15,65.0]
[1720786331088,12.95697607,136.25,136.15,87.11]
[1720786332000,12.95697607,136.25,136.15,65.0]
[1720786333384,12.95697607,136.25,136.16,1.46718263]
[1720786333583,12.95697607,136.25,136.16,21.46718263]
[1720786333795,12.95697607,136.25,136.16,1.46718263]
[1720786334497,12.95697607,136.25,136.15,45.0]
[1720786334691,12.95697607,136.25,136.16,20.0]
[1720786334894,12.95697607,136.25,136.17,45.0]
[1720786335086,12.95697607,136.25,136.18,21.46795143]
[1720786335404,12.95697607,136.25,136.18,1.46795143]
[1720786335910,12.95697607,136.25,136.14,22.9071291]
[1720786336387,12.95697607,136.25,136.15,45.0]
[1720786336590,12.95697607,136.25,136.16,20.0]
[1720786336989,12.95697607,136.25,136.17,1.46825741]
[1720786337191,12.95697607,136.25,136.15,1.46814959]
[1720786337192,20.29677607,136.25,136.15,1.46814959]
[1720786337384,6.6123,136.24,136.15,1.46814959]
[1720786337583,16.2135,136.23,136.11,2.87391082]
[1720786337803,16.2135,136.23,136.12,12.956976]
[1720786339303,16.2135,136.23,136.13,20.0]
[1720786340115,16.2135,136.23,136.11,32.68]
[1720786340303,16.5856,136.21,136.11,32.68]
[1720786341515,16.5856,136.21,136.12,20.0]
[1720786341681,16.5856,136.21,136.13,45.0]
[1720786342017,16.5856,136.21,136.14,21.46710014]
[1720786342195,16.5856,136.21,136.15,1.46791774]
[1720786343123,16.5856,136.21,136.15,46.46791774]
[1720786343487,16.5856,136.21,136.15,45.0]
[1720786343985,16.5856,136.21,136.16,20.0]
[1720786344622,16.5856,136.21,136.18,29.03]
[1720786344823,16.5856,136.21,136.19,1.46832449]
[1720786345920,16.5856,136.21,136.18,29.03]
[1720786346221,16.5856,136.21,136.19,1.46828399]
[1720786346726,16.5856,136.21,136.16,20.0]
[1720786346906,22.054,136.26,136.2,29.03]
[1720786347107,22.054,136.26,136.21,66.46773743]
[1720786347310,22.054,136.26,136.21,21.46773743]
[1720786348160,22.054,136.26,136.2,29.03]
[1720786349530,22.054,136.26,136.21,66.38231408]
[1720786350331,22.054,136.26,136.22,29.03]
[1720786350527,22.054,136.26,136.23,1.38211125]
[1720786350739,22.054,136.26,136.24,1.45072355]
[1720786351040,16.0249,136.26,136.24,30.48072355]
[1720786351935,16.0249,136.26,136.24,1.45072355]
[1720786352232,16.0249,136.26,136.23,20.0]
[1720786352838,16.0249,136.26,136.24,0.90756423]
[1720786353024,16.0249,136.26,136.24,1.46773419]
[1720786354422,16.0249,136.26,136.24,75.49773419]
[1720786354638,16.0249,136.26,136.25,20.0]
[1720786354935,0.8472455,136.27,136.25,20.0]
[1720786355144,0.8472455,136.27,136.26,75.49733799]
[1720786355312,15.9204,136.37,136.26,95.49733799]
[1720786355649,15.9204,136.37,136.3,29.03]
[1720786355839,23.2539,136.37,136.28,29.03]
[1720786356010,6.4257,136.36,136.27,20.0]
[1720786357404,13.7595,136.36,136.27,20.0]
[1720786357605,60.069,136.35,136.27,20.0]
[1720786359014,67.4031,136.35,136.27,20.0]
[1720786359221,15.069,136.35,136.28,0.88263903]
[1720786359816,15.069,136.35,136.27,20.0]
[1720786360131,15.069,136.35,136.28,1.4672611]
[1720786360448,15.069,136.35,136.27,20.0]
[1720786360613,15.069,136.35,136.26,29.03]
[1720786360928,16.3742,136.33,136.26,29.03]
[1720786363113,16.3742,136.33,136.27,20.0]
[1720786364341,16.3742,136.33,136.26,29.03]
[1720786364512,16.3742,136.33,136.24,29.03]
[1720786364714,16.3742,136.33,136.25,1.28273784]
[1720786365120,16.3742,136.33,136.24,29.03]
[1720786365615,6.6077,136.32,136.23,29.03]
[1720786365810,6.6077,136.32,136.24,20.0]
[1720786366513,15.813,136.31,136.21,7.6351679]
[1720786367033,15.813,136.31,136.21,29.03]
[1720786367930,13.8619,136.3,136.19,29.03]
[1720786368127,45.0,136.29,136.19,29.03]
[1720786369144,6.5249,136.3,136.21,29.03]
[1720786369514,6.5198,136.28,136.18,1.46710682]
[1720786369715,6.5198,136.27,136.1,21.2391]
[1720786370021,13.8585,136.27,136.15,29.03]
[1720786370228,7.3394,136.25,136.15,29.03]
[1720786370538,45.0,136.24,136.15,29.03]
[1720786371040,15.9976,136.23,136.15,29.03]
[1720786373049,15.9976,136.23,136.17,29.03]
[1720786373341,15.9976,136.23,136.19,29.03]
[1720786373947,15.9976,136.23,136.17,29.03]
[1720786374123,15.9976,136.23,136.18,20.0]
[1720786374718,15.9976,136.23,136.19,29.03]
[1720786375719,6.5198,136.27,136.19,29.03]
[1720786375928,6.5198,136.27,136.21,29.03]
[1720786376144,6.5198,136.27,136.22,20.0]
[1720786376345,6.5198,136.27,136.2,20.0]
[1720786376541,6.0198,136.27,136.21,1.3610273]
[1720786377348,6.0198,136.27,136.2,20.0]
[1720786378523,6.0198,136.27,136.2,1.46806959]
[1720786378723,6.0198,136.27,136.19,29.03]
[1720786378946,6.0198,136.27,136.2,1.46803265]
[1720786379155,6.0198,136.27,136.19,29.03]
[1720786380635,6.0198,136.27,136.2,1.2395238]
[1720786381034,6.0198,136.27,136.21,1.46808845]
[1720786381460,6.0198,136.27,136.19,29.03]
[1720786383060,6.0198,136.27,136.2,46.46798866]
[1720786383228,6.0198,136.27,136.21,30.49778705]
[1720786384053,6.0198,136.27,136.22,65.0]
[1720786384237,6.0198,136.27,136.23,1.46769749]
[1720786384447,6.0198,136.27,136.24,1.46758976]